{"text_format":"1","workbook":"xlsx","n_sheets":3,"sheets":["Feuil1","Feuil2","Feuil3"],"not_rendered":{"charts":0,"images":0,"macros":0,"external_links":0,"defined_names":0,"comments":0,"pivot_tables":0},"unopened":[],"bounds":{"document_bytes":16777216,"sheet_cells":100000,"rows_first":2000,"rows_last":500,"rows_between":2000,"halvings":0,"cell_chars":16384,"cell_head_chars":4096},"cells_cut":0,"cells_raw":0,"read":"whole","date_system":"1900"}

{"sheet":"Feuil1","index":0,"n_rows":25,"n_cols":17,"rows_kept":25,"cut":false,"hidden":false,"merged":[[18,9,18,10],[19,0,21,10],[17,2,17,3],[17,7,17,8],[18,0,18,1],[18,2,18,3],[18,4,18,5],[18,7,18,8],[12,2,12,3],[12,7,12,8],[14,2,14,3],[14,7,14,8],[15,2,15,3],[15,7,15,8],[9,4,9,5],[9,7,9,8],[9,9,9,10],[10,1,10,3],[10,6,10,8],[11,2,11,3],[11,7,11,8],[5,2,5,3],[5,4,5,5],[5,6,5,8],[5,9,5,10],[7,2,7,3],[7,6,9,6],[7,7,7,8],[8,2,8,3],[8,7,8,8],[9,2,9,3],[0,0,0,10],[1,0,9,1],[1,2,1,3],[1,4,1,10],[2,2,2,3],[2,4,2,10],[3,2,3,3],[3,4,3,10],[4,4,4,5],[4,9,4,10]]}
["FEUILLE DE MATCH EQUIPES "]
[null,null,"ACADEMIE",null,"Nord-Pas-De-Calais",null,null,null,null,null,null,null,"Nom des équipes","Nom des joueurs","N° de Licence","Académie","Lieux"]
[null,null,"LIEU :",null,null,null,null,null,null,null,null,null,"Les Rockets de Dunkerque","Barge Ludovic","149628P","Nord-Pas-De-Calais","DUNKERQUE"]
[null,null,"DATE :",null,null,null,null,null,null,null,null,null,"Heckel et Jeckel du BCCO","Bartier Denis","110479F",null,"RONCHIN"]
[null,null,null,null,"NOM D'EQUIPE",null,null,null,null,"NOM D'EQUIPE",null,null,"Les Cannoniers du BCCO","Blanquart Alain","145533L"]
[null,null,"LOCAUX",null,null,null,"VISITEURS",null,null,null,null,null,"Les Crommeneks de Dunkerque","Caistiker Olivier","145536O"]
[null,null,null,null,"NOMS","N° LICENCES",null,null,null,"NOMS","N° LICENCES",null,"Les Chacals de Dunkerque","Callewaert Alexis","136140E"]
[null,null,"JOUEUR A1 : ",null,null,{"$f":"VLOOKUP(E8,$N$3:$O$26,2,FALSE)","v":{"$error":"#N/A"}},null,"JOUEUR B1 : ",null,null,{"$f":"VLOOKUP(J8,$N$3:$O$26,2,FALSE)","v":{"$error":"#N/A"}},null,"Les Vieilles Charrues du BCCO","Cocquet Jean-Michel","151581M"]
[null,null,"JOUEUR A2 : ",null,null,{"$f":"VLOOKUP(E9,$N$3:$O$26,2,FALSE)","v":{"$error":"#N/A"}},null,"JOUEUR B2 : ",null,null,{"$f":"VLOOKUP(J9,$N$3:$O$26,2,FALSE)","v":{"$error":"#N/A"}},null,"Les Sharks Dunkerquois","Debuyser Francois","121452G"]
[null,null,"CAPITAINE",null,null,null,null,"CAPITAINE",null,null,null,null,"Les Myrmidons Dunkerquois","Dutoit Etienne","136125P"]
["FRAMES","Joueurs",null,null,"Résultat (0/1)","BREAK > 30","Joueurs",null,null,"Résultat (0/1)","BREAK > 30",null,"Les Corsaires Dunkerquois","Gilquin Kévin","140482E"]
[1,"A1",{"$f":"E8","v":0},null,null,null,"B1",{"$f":"J8","v":0},null,null,null,null,null,"Gournay Nicolas","145545X"]
[2,"A2",{"$f":"E9","v":0},null,null,null,"B2",{"$f":"J9","v":0},null,null,null,null,null,"Jacob Franck","141521D"]
[3,"A1/A2",{"$f":"E8","v":0},{"$f":"E9","v":0},null,null,"B1/B2",{"$f":"J8","v":0},{"$f":"J9","v":0},null,null,null,null,"Lanvin Yan","145546Y"]
[4,"A1",{"$f":"E8","v":0},null,null,null,"B2",{"$f":"J9","v":0},null,null,null,null,null,"Magne Lionel","149018B"]
[5,"A2",{"$f":"E9","v":0},null,null,null,"B1",{"$f":"J8","v":0},null,null,null,null,null,"Marquette Bertrand","155517Q"]
[6,"A1/A2",{"$f":"E8","v":0},{"$f":"E9","v":0},null,null,"B1/B2",{"$f":"J8","v":0},{"$f":"J9","v":0},null,null,null,null,"Pecqueux Emos","146132M"]
[7,"AX",null,null,null,null,"BX",null,null,null,null,null,null,"Pecqueux René","145539R"]
[null,null,"TOTAL",null,{"$f":"SUM(E12:E18)","v":0},null,null,"TOTAL",null,{"$f":"SUM(J12:J18)","v":0},null,null,null,"Peters Franck","155518R"]
[null,null,null,null,null,null,null,null,null,null,null,null,null,"Poly Daniel","124513Z"]
[null,null,null,null,null,null,null,null,null,null,null,null,null,"Toussaint Géraud","145541T"]
[null,null,null,null,null,null,null,null,null,null,null,null,null,"Van Mellaerts Maxime","152016K"]
[null,null,null,null,null,null,null,null,null,null,null,null,null,"Verhaghe Dominique","017257T"]
[null,null,null,null,null,null,null,null,null,null,null,null,null,"Verley Paul","157082R"]
[null,null,null,null,null,null,null,null,null,null,null,null,null,"Vincent Niel","138716G"]

{"sheet":"Feuil2","index":1,"n_rows":0,"n_cols":0,"rows_kept":0,"cut":false,"hidden":false,"merged":[]}

{"sheet":"Feuil3","index":2,"n_rows":0,"n_cols":0,"rows_kept":0,"cut":false,"hidden":false,"merged":[]}